bitfinex-derivatives/quotes_ETHF0:USTF0_20241129
["timestamp","ask_amount","ask_price","bid_price","bid_amount"]
[1732842073361,0.28048,3564.4,3563.4,1.4602]
[1732842073362,0.72019,3564.3,3563.7,3.48832]
[1732842073555,0.4397,3564.3,3563.7,7.1578]
[1732842073764,3.26729384,3564.1,3564.0,0.2805]
[1732842074061,3.26729384,3564.3,3564.1,3.2078]
[1732842074262,5.46577504,3564.7,3564.2,0.28048]
[1732842074263,3.26729384,3564.6,3564.2,0.28048]
[1732842074460,3.26729384,3564.6,3564.3,0.28048]
[1732842074960,3.26729384,3564.6,3564.2,0.28049]
[1732842075157,0.28045,3564.7,3564.2,0.28049]
[1732842075158,3.54774384,3564.7,3564.2,0.28049]
[1732842075361,3.54775384,3564.6,3564.1,3.4883]
[1732842075556,3.26729384,3564.6,3564.2,0.28049]
[1732842076260,3.54774384,3564.7,3564.2,0.28049]
[1732842076658,3.54774384,3564.7,3564.1,3.2078]
[1732842076858,3.54774384,3564.7,3564.3,0.28048]
[1732842077158,0.28045,3564.7,3564.2,0.28049]
[1732842077353,3.54774384,3564.7,3564.2,0.28049]
[1732842077557,0.28045,3564.7,3564.2,0.28049]
[1732842077755,3.70699384,3564.8,3564.1,3.2078]
[1732842077957,3.98743384,3564.8,3564.1,6.8778]
[1732842078164,0.72014,3564.8,3564.3,0.28048]
[1732842078354,0.4397,3564.8,3564.1,3.2078]
[1732842078660,4.8066356,3565.2,3564.7,0.28045]
[1732842078661,3.26729384,3565.0,3564.7,0.28045]
[1732842078867,0.28046,3564.7,3564.2,0.28049]
[1732842079162,0.28045,3564.8,3564.3,0.28048]
[1732842079356,0.28045,3564.8,3564.3,2.57048]
[1732842079556,1.2621,3564.9,3564.3,2.29]
[1732842079766,0.28045,3564.8,3564.3,2.57048]
[1732842080058,1.2621,3564.9,3564.3,2.29]
[1732842080360,1.2621,3564.9,3564.8,0.28044]
[1732842080361,0.8398,3564.9,3564.8,0.28044]
[1732842080954,0.8398,3564.9,3564.6,0.28046]
[1732842081459,0.8398,3564.9,3564.6,4.35046]
[1732842081963,0.8398,3564.9,3564.8,0.28044]
[1732842083462,0.8398,3564.9,3564.8,4.43044]
[1732842084762,0.70269,3565.5,3565.1,0.28041]
[1732842085064,0.2804,3565.3,3565.1,3.61]
[1732842085258,0.4246,3565.4,3565.1,3.61]
[1732842085755,0.4246,3565.4,3565.2,0.28041]
[1732842085961,0.4246,3565.4,3565.2,4.37]
[1732842086162,0.705,3565.4,3565.2,4.37]
[1732842086460,0.4246,3565.4,3565.2,4.37]
[1732842086862,0.4246,3565.4,3565.1,0.28042]
[1732842086863,5.42007512,3565.3,3564.5,3.2078]
[1732842087066,5.42007512,3565.3,3563.0,0.2808]
[1732842087067,5.82307512,3564.9,3563.8,3.2078]
[1732842087267,3.2078,3564.5,3563.8,4.41]
[1732842087461,0.28049,3564.3,3564.0,0.28051]
[1732842087762,0.68758,3564.4,3564.0,0.28051]
[1732842087962,0.68758,3564.4,3563.6,3.2078]
[1732842087963,0.4071,3564.4,3563.6,3.2078]
[1732842088166,0.4071,3564.4,3563.6,7.5078]
[1732842088369,0.28052,3563.9,3563.6,7.5078]
[1732842088569,0.28052,3563.8,3563.6,7.5078]
[1732842089163,3.2078,3564.0,3563.2,3.2078]
[1732842089372,0.4257,3563.7,3563.4,0.28055]
[1732842089666,0.70623,3563.7,3563.4,0.28055]
[1732842090060,0.28054,3563.6,3563.3,0.28056]
[1732842090260,0.4257,3563.7,3563.4,0.13372825]
[1732842090461,0.4257,3563.7,3563.3,3.77]
[1732842090462,0.4257,3563.7,3563.2,3.2078]
[1732842090662,0.28056,3563.4,3563.3,0.13372593]
[1732842090863,0.28056,3563.3,3563.2,3.2078]
[1732842091765,0.4257,3563.7,3562.7,40.8]
[1732842091766,0.2806,3562.9,3562.7,40.8]
[1732842091957,3.2078,3563.4,3562.7,44.96]
[1732842092469,0.4257,3563.7,3562.8,0.2806]
[1732842092665,0.4257,3563.7,3562.8,3.74]
[1732842092858,0.4257,3563.7,3562.6,3.2078]
[1732842092859,0.2806,3562.8,3562.6,3.2078]
[1732842093058,3.31669512,3563.3,3562.1,3.2078]
[1732842093059,1.2614,3562.7,3562.1,3.2078]
[1732842093263,0.28063,3562.5,3562.1,3.2078]
[1732842093569,1.2614,3562.7,3562.1,3.2078]
[1732842093570,0.28062,3562.6,3562.1,3.2078]
[1732842093757,0.28063,3562.5,3562.1,3.2078]
[1732842093959,0.28065,3562.2,3562.1,3.2078]
[1732842094159,1.2614,3562.7,3562.1,3.2078]
[1732842094360,0.28063,3562.5,3562.1,3.48846]
[1732842094867,1.2614,3562.7,3561.5,44.47627512]
[1732842095164,0.28066,3562.1,3561.7,0.28069]
[1732842095466,0.28064,3562.4,3561.9,0.28067]
[1732842095860,1.54202,3562.7,3562.2,0.28065]
[1732842096168,0.28062,3562.6,3562.2,4.16]
[1732842096669,1.2614,3562.7,3562.2,4.16]
[1732842096966,0.28063,3562.5,3562.2,4.16]
[1732842097167,1.2614,3562.7,3562.2,4.16]
[1732842097471,0.28062,3562.6,3562.2,4.16]
[1732842097669,1.2614,3562.7,3562.2,4.16]
[1732842097865,0.28064,3562.3,3562.2,4.16]
[1732842098066,0.28064,3562.3,3561.5,43.41527512]
[1732842098067,1.2614,3562.7,3561.5,41.0807]
[1732842098371,0.28067,3562.0,3561.5,45.0607]
[1732842098561,0.28067,3562.0,3561.6,0.2807]
[1732842098762,0.28065,3562.3,3561.8,0.28068]
[1732842099073,0.28065,3562.3,3561.8,4.19068]
[1732842099273,3.2078,3562.5,3561.8,3.91]
[1732842099469,0.28067,3562.0,3561.8,3.91]
[1732842099670,3.2078,3562.5,3561.8,3.91]
[1732842099882,0.28066,3562.1,3561.8,3.91]
[1732842100170,0.28067,3562.0,3561.8,3.91]
[1732842100475,3.2078,3562.5,3561.8,3.91]
[1732842100664,0.28067,3562.0,3561.4,3.2078]
[1732842100976,0.28071,3561.5,3561.4,6.9078]
[1732842101172,0.2807,3561.6,3561.4,6.9078]
[1732842101369,0.4258,3561.8,3561.4,6.9078]
[1732842101573,0.28071,3561.5,3561.4,6.9078]
[1732842101973,0.28071,3561.5,3561.4,3.7]
[1732842102870,0.4147,3561.7,3561.4,3.7]
[1732842103068,0.4258,3561.8,3561.4,3.7]
[1732842103269,0.4254,3562.3,3561.6,3.2078]
[1732842103470,0.28062,3562.6,3562.2,0.28064]
[1732842103668,0.426,3562.8,3562.2,4.29]
[1732842103669,0.28063,3562.5,3562.2,4.29]
[1732842104176,0.426,3562.8,3562.2,4.57065]
[1732842104177,0.28062,3562.6,3562.2,4.57065]
[1732842104771,0.28061,3562.7,3562.3,0.28064]
[1732842105070,0.426,3562.8,3562.3,3.68]
[1732842105272,0.28062,3562.7,3562.3,3.96064]
[1732842105670,0.70661,3562.8,3562.3,3.96064]
[1732842105872,0.70661,3562.8,3562.4,0.28063]
[1732842106067,0.70661,3562.8,3562.4,4.52063]
[1732842106682,0.28062,3562.7,3562.4,4.24]
[1732842106872,3.2078,3563.0,3562.7,0.28061]
[1732842107066,0.443,3563.3,3562.7,4.35]
[1732842107367,6.1038959,3563.7,3563.1,0.28058]
[1732842107368,0.28055,3563.5,3563.1,0.28058]
[1732842107566,3.48862078,3563.7,3563.1,4.25]
[1732842107567,3.2078,3563.7,3563.1,4.25]
[1732842107968,3.2078,3563.7,3563.4,0.28055]
[1732842108173,0.28052,3563.8,3563.4,4.05]
[1732842108374,0.28051,3564.0,3563.6,0.28054]
[1732842108580,0.28051,3564.0,3563.6,4.41054]
[1732842108876,1.2842,3564.1,3563.6,4.41054]
[1732842108877,0.8817,3564.1,3563.6,4.13]
[1732842109074,0.8817,3564.1,3563.8,0.28052]
[1732842109275,0.8817,3564.1,3563.8,4.19]
[1732842109674,0.28048,3564.4,3564.0,0.28051]
[1732842109876,0.28048,3564.4,3564.0,4.48]
[1732842110179,0.28048,3564.4,3564.0,4.76051]
[1732842110476,0.8438,3564.8,3564.0,4.76051]
[1732842110477,0.8438,3564.8,3564.0,10.4934]
[1732842110674,0.28046,3564.7,3564.4,3.2078]
[1732842110881,0.4248,3565.5,3564.4,7.4278]
[1732842111176,0.4248,3565.5,3564.8,3.2078]
[1732842111377,0.28041,3565.2,3564.8,6.8678]
[1732842111573,0.4248,3565.5,3564.8,3.2078]
[1732842111876,0.4248,3565.5,3564.8,4.14]
[1732842112185,0.4248,3565.5,3564.4,3.6188]
[1732842112186,0.4248,3565.5,3564.5,40.8]
[1732842112373,0.28042,3565.1,3564.5,0.28046]
[1732842112569,0.4248,3565.5,3564.5,3.71]
[1732842112775,3.2078,3565.3,3564.5,3.71]
[1732842113076,3.2078,3565.3,3564.4,3.2078]
[1732842113278,3.2078,3565.3,3564.4,7.1978]
[1732842113279,0.28045,3564.8,3564.4,7.1978]
[1732842114272,3.2078,3564.9,3564.4,3.99]
[1732842114473,3.2078,3564.9,3563.7,0.28053]
[1732842114474,0.28049,3564.3,3563.7,0.28053]
[1732842114673,0.28049,3564.3,3563.7,4.29053]
[1732842115075,0.8678,3564.8,3563.7,4.01]
[1732842115275,0.2805,3564.1,3563.7,4.01]
[1732842116078,3.2078,3564.5,3563.7,4.01]
[1732842116377,0.28051,3564.1,3563.7,4.01]
[1732842117071,3.2078,3564.5,3563.5,3.2078]
[1732842117278,3.2078,3564.5,3562.7,0.4296]
[1732842117279,3.2078,3563.7,3562.7,0.4296]
[1732842117480,0.4147,3563.6,3562.7,3.79]
[1732842117678,0.4398,3563.5,3562.7,3.79]
[1732842117979,0.4398,3563.5,3562.8,0.2806]
[1732842118175,0.4398,3563.5,3562.8,4.05]
[1732842118671,0.4221,3564.0,3563.6,0.28053]
[1732842118872,3.48829,3564.2,3563.7,0.28053]
[1732842119173,0.2805,3564.1,3563.7,3.79]
[1732842119874,0.28048,3564.4,3563.7,4.07053]
[1732842120075,0.28051,3564.1,3563.7,3.79]
[1732842120374,0.4147,3564.5,3563.7,3.79]
[1732842120570,0.2805,3564.1,3563.7,3.79]
[1732842120776,0.28051,3564.0,3563.7,3.79]
[1732842121172,0.4147,3564.5,3563.4,3.2078]
[1732842121173,0.28053,3563.7,3563.4,3.2078]
[1732842121373,0.28055,3563.5,3563.4,2.28]
[1732842121576,0.28056,3563.4,3562.9,0.28059]
[1732842121782,0.28053,3563.8,3563.3,0.28056]
[1732842121976,0.28053,3563.8,3563.1,3.2078]
[1732842121977,6.38270135,3564.2,3563.1,3.2078]
[1732842122180,6.38270135,3564.2,3563.1,7.2778]
[1732842122181,0.28056,3563.4,3563.1,7.2778]
[1732842122577,8.39673851,3564.2,3563.1,7.2778]
[1732842122578,0.4394,3563.7,3563.1,7.2778]
[1732842122980,0.28057,3563.2,3563.1,4.07]
[1732842123378,0.4321,3563.6,3563.1,4.07]
[1732842123574,0.4321,3563.6,3563.1,4.35057]
[1732842123575,0.71264,3563.6,3563.1,4.35057]
[1732842123874,0.28056,3563.4,3563.1,4.07]
[1732842124078,0.4321,3563.6,3563.1,4.35057]
[1732842124079,0.71265,3563.6,3563.1,4.35057]
[1732842124680,0.28055,3563.5,3563.1,4.07]
[1732842125188,3.2078,3564.2,3563.4,3.2078]
[1732842125378,3.2078,3564.2,3564.0,0.2805]
[1732842125582,3.2078,3564.2,3564.0,4.41]
[1732842126087,0.28046,3564.7,3564.3,0.28048]
[1732842126275,0.28046,3564.7,3564.3,4.67048]
[1732842126481,0.8767,3565.0,3564.3,4.39]
[1732842126784,0.28045,3564.8,3564.4,0.28047]
[1732842127089,0.28045,3564.8,3564.4,4.22047]
[1732842127685,0.8767,3565.0,3564.4,3.94]
[1732842128383,0.28047,3564.6,3564.4,3.94]
[1732842128588,0.8767,3565.0,3564.4,3.94]
[1732842128789,0.28048,3564.4,3563.7,3.2078]
[1732842128990,0.28047,3564.5,3563.7,6.8278]
[1732842129185,0.28048,3564.4,3563.9,0.28051]
[1732842129389,0.28048,3564.4,3564.0,0.28051]
[1732842129691,0.28048,3564.4,3564.0,4.66051]
[1732842130285,0.8767,3565.0,3564.0,4.38]
[1732842130685,0.28048,3564.4,3564.0,4.38]
[1732842130891,0.8767,3565.0,3564.2,0.28049]
[1732842131094,0.28048,3564.4,3564.2,3.75]
[1732842131483,0.28046,3564.6,3564.2,4.03049]
[1732842131682,0.28048,3564.4,3564.2,3.75]
[1732842132192,0.8767,3565.0,3564.2,3.75]
[1732842132389,0.28046,3564.6,3564.2,4.03049]
[1732842132585,0.01285,3565.3,3564.5,3.2078]
[1732842132792,0.01285,3565.3,3564.6,0.4332]
[1732842132987,0.01285,3565.3,3565.1,3.2078]
[1732842132988,0.29326,3565.3,3565.1,3.2078]
[1732842133193,0.01285,3565.3,3565.1,7.66822]
[1732842133395,0.28039,3565.5,3565.1,7.66822]
[1732842133593,3.71259384,3565.7,3565.1,7.3878]
[1732842133989,0.28039,3565.5,3565.1,7.66822]
[1732842134289,3.71259384,3565.7,3565.1,7.3878]
[1732842134290,0.28041,3565.3,3565.1,7.3878]
[1732842134491,0.2804,3565.4,3565.1,7.3878]
[1732842135091,0.4453,3565.7,3565.1,7.3878]
[1732842135288,0.28041,3565.3,3565.1,7.3878]
[1732842135484,0.4453,3565.7,3565.1,7.66822]
[1732842135690,0.28038,3565.6,3565.1,7.66822]
[1732842135893,0.2804,3565.4,3565.1,7.3878]
[1732842136895,0.28038,3565.6,3565.2,0.28041]
[1732842137095,0.2804,3565.4,3565.2,3.99]
[1732842137289,0.28039,3565.5,3565.2,4.27041]
[1732842138088,0.4453,3565.7,3565.2,3.99]
[1732842138288,0.28039,3565.5,3565.2,3.99]
[1732842138492,0.4453,3565.7,3565.2,3.99]
[1732842138698,0.2804,3565.4,3565.2,3.99]
[1732842139191,0.4453,3565.7,3565.2,3.99]
[1732842139392,0.28041,3565.3,3565.2,3.99]
[1732842139592,0.28041,3565.3,3564.6,0.4332]
[1732842139593,3.2078,3565.5,3564.7,3.2078]
[1732842139785,3.2078,3565.5,3564.7,4.31]
[1732842139988,0.28042,3565.2,3564.8,0.28044]
[1732842140393,0.28044,3564.9,3564.6,3.48826]
[1732842140586,0.4385,3565.1,3564.6,3.86]
[1732842140787,3.26729384,3565.6,3565.0,0.28043]
[1732842140788,0.2804,3565.4,3565.0,0.28043]
[1732842141194,0.2804,3565.4,3564.6,3.2078]
[1732842141195,0.2804,3565.4,3565.1,0.28042]
[1732842141401,0.2804,3565.4,3565.1,4.33]
[1732842142495,0.8838,3565.7,3565.1,4.33]
[1732842143387,0.8838,3565.7,3564.3,5.8533]
[1732842143388,3.2078,3565.5,3564.6,3.2078]
[1732842143588,3.2078,3565.5,3564.6,7.1178]
[1732842143795,3.9089,3565.0,3564.0,3.2078]
[1732842144002,1.2517,3564.9,3564.0,7.2278]
[1732842144294,3.48823,3565.0,3564.1,0.2805]
[1732842144495,1.2517,3565.4,3564.4,3.2078]
[1732842144695,1.2517,3565.4,3564.9,0.28043]
[1732842144896,0.28041,3565.3,3564.9,4.38]
[1732842145101,0.28041,3565.3,3564.9,4.66044]
[1732842145501,0.28041,3565.2,3564.9,4.66044]
[1732842145802,1.2517,3565.4,3564.9,4.38]
[1732842145998,3.2078,3565.6,3564.9,4.38]
[1732842146305,0.28043,3565.0,3564.8,3.2078]
[1732842146501,0.28043,3565.0,3563.7,0.26301429]
[1732842146502,3.17297667,3565.1,3563.8,3.2078]
[1732842146801,3.2078,3564.3,3563.4,3.6206]
[1732842147000,0.4127,3564.2,3563.4,0.4128]
[1732842147197,0.28053,3563.8,3563.4,0.69335]
[1732842147498,0.28051,3564.0,3563.6,0.28054]
[1732842147696,0.28051,3564.0,3563.6,3.87054]
[1732842147896,0.4429,3564.1,3563.6,3.59]
[1732842148410,0.28046,3564.6,3564.2,0.28049]
[1732842148600,3.2078,3564.7,3564.0,0.2805]
[1732842148601,0.28048,3564.4,3564.0,0.2805]
[1732842148906,0.28049,3564.3,3564.0,0.2805]
[1732842149090,0.28048,3564.4,3564.0,0.2805]
[1732842150301,3.6164,3564.7,3563.9,3.2078]
[1732842150501,3.6164,3564.7,3563.9,7.3578]
[1732842150502,0.28051,3564.0,3563.9,7.3578]
[1732842150696,0.28051,3564.0,3563.9,3.2078]
[1732842151001,0.2805,3564.1,3563.9,3.2078]
[1732842151701,6.88369384,3564.7,3563.9,3.2078]
[1732842151905,0.28049,3564.3,3563.9,3.48831]
[1732842152109,0.28051,3564.1,3563.9,3.2078]
[1732842152401,6.88369384,3564.7,3563.9,3.2078]
[1732842152402,6.88369384,3564.7,3563.9,7.2278]
[1732842152709,3.89686,3564.7,3564.2,0.28048]
[1732842152914,3.89686,3564.7,3564.1,0.2805]
[1732842152915,0.28048,3564.5,3564.1,0.2805]
[1732842153207,6.88369384,3564.7,3564.2,40.8]
[1732842153501,0.28048,3564.5,3564.2,40.8]
[1732842153706,6.88369384,3564.7,3563.9,3.2078]
[1732842153707,0.28049,3564.2,3563.9,3.2078]
[1732842153906,3.26729384,3564.6,3563.9,3.5478]
[1732842154102,7.16414384,3564.7,3563.9,3.5478]
[1732842154297,3.2078,3564.7,3564.0,40.8]
[1732842154502,4.36572384,3565.0,3564.6,0.28046]
[1732842154709,4.36572384,3565.0,3564.7,0.28045]
[1732842154710,1.09843,3565.0,3564.7,0.28045]
[1732842155004,1.09843,3565.0,3564.6,0.28046]
[1732842155505,3.26729384,3565.2,3564.4,0.4443]
[1732842155802,0.4209,3565.3,3564.7,3.2078]
[1732842156005,0.28043,3565.1,3564.7,7.61825]
[1732842156213,0.4209,3565.3,3564.7,7.3378]
[1732842156410,0.70131,3565.3,3564.9,0.28043]
[1732842156702,0.70131,3565.3,3564.9,4.09043]
[1732842157708,0.70131,3565.3,3564.9,3.81]
[1732842157709,0.4209,3565.3,3564.9,3.81]
[1732842157906,3.41835261,3566.2,3564.9,3.81]
[1732842157907,0.28038,3565.6,3565.2,0.28041]
[1732842158102,6.47509384,3565.8,3565.2,3.89]
[1732842158500,0.28039,3565.6,3565.2,3.89]
[1732842158704,0.28039,3565.6,3565.2,4.17041]
[1732842159004,0.28039,3565.6,3565.3,0.28041]
[1732842159206,0.28039,3565.6,3565.2,0.28041]
[1732842159508,3.2078,3565.8,3565.2,3.96]
[1732842159509,0.2804,3565.5,3565.2,3.96]
[1732842159712,0.28039,3565.6,3565.2,4.24041]
[1732842159903,0.28039,3565.6,3565.2,3.96]
[1732842160204,0.28039,3565.6,3565.2,0.28041]
[1732842160406,0.28039,3565.6,3565.1,3.2078]
[1732842160604,3.2078,3565.8,3565.1,7.6878]
[1732842160799,0.28038,3565.6,3565.2,0.28041]
[1732842161003,0.28039,3565.5,3565.2,0.28041]
[1732842161310,0.28037,3565.8,3565.4,0.28039]
[1732842162004,0.28038,3565.7,3565.4,0.28039]
[1732842163416,0.28038,3565.6,3565.3,0.2804]
[1732842163699,3.26729384,3565.7,3565.1,3.2078]
[1732842163900,0.28038,3565.6,3565.3,0.2804]
[1732842164099,3.54767384,3565.6,3565.3,0.2804]
[1732842164509,3.26729384,3565.6,3565.1,3.2078]
[1732842164805,3.26729384,3565.6,3565.2,0.28041]
[1732842165005,0.2804,3565.5,3565.1,3.48821]
[1732842165311,0.28039,3565.5,3565.1,3.94821]
[1732842165604,0.28039,3565.5,3565.1,3.6678]
[1732842165605,3.54768384,3565.5,3565.1,3.6678]
[1732842165808,3.54768384,3565.5,3565.2,0.28041]
[1732842166111,3.54768384,3565.5,3565.1,3.48822]
[1732842166409,0.2804,3565.4,3565.1,7.21822]
[1732842166620,0.7254,3565.4,3565.1,7.21822]
[1732842166910,0.445,3565.4,3565.1,6.9378]
[1732842167111,0.445,3565.4,3565.2,0.28041]
[1732842167306,0.445,3565.4,3565.1,3.2078]
[1732842167505,3.54767384,3565.6,3565.1,10.1726]
[1732842167506,3.26729384,3565.6,3565.1,10.1726]
[1732842167707,3.26729384,3565.7,3565.6,0.28038]
[1732842168206,4.3743356,3566.0,3565.7,0.28037]
[1732842168207,3.26729384,3565.8,3565.7,0.28037]
[1732842168510,0.8846,3566.1,3565.2,0.4413]
[1732842168511,4.3743356,3565.9,3565.2,0.4413]
[1732842168705,3.27283713,3565.9,3565.7,0.28037]
[1732842168905,3.27283713,3565.9,3565.8,0.28037]
[1732842169507,3.27283713,3566.0,3565.8,7.144]
[1732842169715,3.27283713,3566.0,3565.9,0.28036]
[1732842169903,3.27283713,3566.0,3565.9,3.88036]
[1732842170510,0.4396,3566.1,3566.0,0.28035]
[1732842170708,0.4396,3566.1,3566.0,4.07035]
[1732842171011,3.67753713,3566.5,3566.0,3.79]
[1732842171205,0.28032,3566.4,3566.1,0.28034]
[1732842171412,0.28032,3566.4,3566.1,4.45034]
[1732842171606,0.4047,3566.5,3566.2,0.28034]
[1732842171799,0.68502,3566.5,3566.2,0.28034]
[1732842172501,0.68501,3566.5,3566.2,0.28033]
[1732842172904,0.4047,3566.5,3566.0,3.2078]
[1732842173107,0.4047,3566.5,3566.1,0.28034]
[1732842173108,0.28032,3566.4,3566.1,0.28034]
[1732842173311,0.4047,3566.5,3566.1,4.01]
[1732842173514,0.68501,3566.5,3566.2,0.28033]
[1732842173710,0.4047,3566.5,3566.2,0.75033]
[1732842174208,0.4047,3566.5,3566.3,0.28033]
[1732842174412,0.4047,3566.5,3566.2,0.47]
[1732842174413,0.4047,3566.5,3566.4,0.28032]
[1732842175313,0.4047,3566.5,3566.0,3.2078]
[1732842175512,0.4047,3566.5,3566.0,7.86815]
[1732842175513,0.28033,3566.3,3566.0,7.86815]
[1732842175710,0.4047,3566.5,3566.0,7.5878]
[1732842175711,0.28034,3566.2,3566.0,7.5878]
[1732842175907,0.28032,3566.4,3566.0,7.5878]
[1732842176107,0.28033,3566.3,3566.0,7.86815]
[1732842176315,0.4119,3566.2,3566.0,7.86815]
[1732842178217,0.4119,3566.2,3566.0,7.5878]
[1732842178422,0.4119,3566.2,3566.1,0.28034]
[1732842178619,0.4119,3566.2,3566.1,4.63034]
[1732842178923,0.69224,3566.2,3566.1,4.35]
[1732842181317,0.4119,3566.2,3566.1,4.35]
[1732842181521,0.69224,3566.2,3566.1,4.35]
[1732842182115,9.03224977,3566.2,3565.4,3.2078]
[1732842182319,9.03224977,3566.2,3564.9,3.2078]
[1732842182320,3.2078,3565.7,3564.9,3.2078]
[1732842182520,3.2078,3565.7,3564.9,7.2378]
[1732842182521,2.18190047,3565.6,3564.9,7.2378]
[1732842182718,2.18190047,3565.6,3565.2,0.28041]
[1732842182719,0.69259,3565.5,3565.2,0.28041]
[1732842183023,3.27283713,3565.8,3565.2,0.28041]
[1732842183024,2.18190047,3565.8,3565.6,0.28038]
[1732842183221,0.4124,3566.1,3565.7,6.0126]
[1732842183422,0.4124,3566.1,3566.0,0.28035]
[1732842183621,0.4124,3566.1,3565.9,0.28035]
[1732842183922,0.4124,3566.1,3565.9,4.72035]
[1732842184425,0.4124,3566.1,3565.9,4.44]
[1732842184626,0.4124,3566.1,3566.0,0.28035]
[1732842184921,0.4122,3566.2,3566.0,4.45]
[1732842185220,2.18190047,3566.6,3566.1,2.804]
[1732842185416,2.18190047,3566.6,3566.3,0.28032]
[1732842185417,2.46221047,3566.6,3566.3,0.28032]
[1732842185618,4.6546456,3566.6,3566.3,4.05032]
[1732842185816,3.27558769,3566.4,3566.3,4.05032]
[1732842186119,3.27558769,3566.5,3566.4,0.28032]
[1732842186312,3.27558769,3566.5,3566.4,3.89032]
[1732842187318,3.27558769,3566.5,3566.4,3.61]
[1732842187525,3.27558769,3566.5,3566.4,3.89032]
[1732842187719,3.27558769,3566.6,3566.4,3.61]
[1732842187917,3.27558769,3566.6,3566.5,0.28031]
[1732842188319,3.27558769,3566.6,3566.5,4.46031]
[1732842188516,3.71738769,3566.7,3566.6,0.2803]
[1732842188727,3.71738769,3566.7,3566.6,4.43]
[1732842188925,3.27558769,3566.7,3566.6,4.43]
[1732842189228,2.18303241,3566.7,3566.6,4.43]
[1732842189413,0.28029,3566.8,3566.6,4.43]
[1732842189414,2.60523241,3566.8,3566.6,7.234]
[1732842189613,4.3743356,3567.1,3566.8,0.28028]
[1732842189614,2.18303241,3567.0,3566.8,0.28028]
[1732842189817,3.69778769,3567.1,3566.9,0.28028]
[1732842190017,3.69778769,3567.1,3567.0,0.28027]
[1732842190226,3.69778769,3567.1,3566.7,3.2078]
[1732842190430,0.4222,3567.1,3567.0,0.28027]
[1732842190615,2.6045526,3567.1,3567.0,0.28027]
[1732842190822,0.4222,3567.1,3566.9,0.28028]
[1732842191122,2.18232038,3567.0,3566.9,4.26]
[1732842191522,2.60452038,3567.1,3566.9,4.54028]
[1732842191720,2.18232038,3567.0,3566.9,4.54028]
[1732842192028,2.60452038,3567.1,3566.9,4.26]
[1732842192726,2.46259038,3567.0,3566.9,4.26]
[1732842193030,3.55585769,3567.0,3566.9,4.26]
[1732842193327,3.97653072,3567.0,3566.9,4.26]
[1732842193526,3.97415897,3567.0,3566.9,4.26]
[1732842193829,0.28027,3567.0,3566.9,4.26]
[1732842195321,3.08347,3567.0,3566.9,4.26]
[1732842195616,3.08347,3567.0,3566.3,3.2078]
[1732842195617,0.70071,3566.9,3565.4,3.2078]
[1732842195822,5.3902711,3566.5,3566.0,0.28034]
[1732842196020,5.3902711,3566.5,3566.0,4.11]
[1732842196021,1.2874,3566.4,3566.0,4.11]
[1732842196225,0.28034,3566.2,3566.0,4.11]
[1732842196423,1.2874,3566.4,3566.0,4.39035]
[1732842196424,1.56772,3566.4,3566.0,4.39035]
[1732842197126,0.28034,3566.2,3566.0,4.11]
[1732842197328,0.28033,3566.3,3566.0,4.11]
[1732842198025,1.2874,3566.4,3566.0,4.11]
[1732842198026,0.28034,3566.1,3566.0,4.11]
[1732842198432,0.28034,3566.1,3565.5,40.8]
[1732842198631,0.28034,3566.2,3565.8,0.28036]
[1732842198829,2.1824711,3566.3,3565.8,3.6]
[1732842199029,0.28038,3565.7,3565.4,3.4882]
[1732842199233,0.4429,3565.6,3565.4,7.0778]
[1732842199431,0.8801,3565.6,3565.5,0.28039]
[1732842199633,0.8801,3565.6,3565.4,47.8778]
[1732842199634,0.8801,3565.6,3565.4,44.0078]
[1732842199828,0.8801,3565.6,3565.4,48.2978]
[1732842200128,0.28039,3565.5,3565.4,44.0078]
[1732842200332,0.69939,3565.5,3565.4,44.0078]
[1732842200925,0.69939,3565.5,3565.4,3.2078]
[1732842201325,0.419,3565.5,3565.4,3.2078]
[1732842201530,0.419,3565.5,3565.4,7.1278]
[1732842201731,5.6706211,3566.1,3565.4,9.9326]
[1732842201938,2.1824711,3566.1,3566.0,0.28035]
[1732842202133,2.1824711,3566.1,3565.5,0.4087]
[1732842202134,0.28035,3566.1,3565.7,0.28037]
[1732842202334,0.8776,3566.2,3565.7,4.08]
[1732842202634,2.1824711,3565.8,3565.7,4.39]
[1732842202937,0.28036,3565.9,3565.7,4.39]
[1732842203331,0.28037,3565.8,3565.7,4.39]
[1732842204128,2.4628411,3565.8,3565.7,4.39]
[1732842204332,3.27370666,3566.0,3565.5,0.28038]
[1732842204333,2.4628311,3565.9,3565.5,0.28038]
[1732842204640,3.27370666,3566.0,3565.5,4.24]
[1732842204641,2.1824711,3565.8,3565.5,4.24]
[1732842205040,0.28038,3565.6,3565.5,4.24]
[1732842205341,0.28038,3565.6,3565.0,40.8]
[1732842205342,2.1824711,3565.6,3565.0,40.8]
[1732842205534,6.48150666,3565.7,3565.0,44.56]
[1732842205535,3.47341499,3565.5,3565.0,44.56]
[1732842205837,0.2804,3565.4,3565.0,44.84043]
[1732842206229,3.75380499,3565.5,3565.0,44.56]
[1732842206635,0.2804,3565.4,3565.1,0.28042]
[1732842206835,3.75380499,3565.5,3565.2,0.28041]
[1732842207036,3.47341499,3565.5,3565.2,4.46]
[1732842207237,0.2804,3565.4,3565.2,4.46]